[Event "FIDE World Rapid Chess Championship 2021"]
[White "Dvirnyy, Danyyil"]
[Black "Kosakowski, Jakub"]
[WhiteFideId "817570"]
[BlackFideId "1185080"]
[WhiteElo "2550"]
[BlackElo "2304"]
[Result "0-1"]
[Round "02"]
[TimeControl "900+10"]
[Date "2021.12.26"]
[WhiteClock "0:03:24"]
[BlackClock "0:05:29"]

1. e4 {[%clk 0:15:00]}  c5 {[%clk 0:15:00]} 2. Nf3 {[%clk 0:15:00]}  d6 {[%clk 0:15:00]} 3. d4 {[%clk 0:15:00]}  cxd4 {[%clk 0:15:00]} 4. Nxd4 {[%clk 0:15:00]}  Nf6 {[%clk 0:15:00]} 5. Nc3 {[%clk 0:15:00]}  a6 {[%clk 0:15:00]} 6. Bd3 {[%clk 0:15:00]}  e5 {[%clk 0:15:00]} 7. Nde2 {[%clk 0:15:00]}  Be7 {[%clk 0:15:00]} 8. O-O {[%clk 0:15:00]}  Nbd7 {[%clk 0:15:00]} 9. Ng3 {[%clk 0:15:00]}  Nc5 {[%clk 0:15:00]} 10. Be2 {[%clk 0:15:00]}  O-O {[%clk 0:15:00]} 11. Be3 {[%clk 0:15:00]}  Be6 {[%clk 0:15:00]} 12. b4 {[%clk 0:15:00]}  Ncd7 {[%clk 0:15:00]} 13. Nd5 {[%clk 0:15:00]}  Bxd5 {[%clk 0:15:00]} 14. exd5 {[%clk 0:15:00]}  a5 {[%clk 0:15:00]} 15. bxa5 {[%clk 0:15:00]}  Rxa5 {[%clk 0:15:00]} 16. c4 {[%clk 0:15:00]}  g6 {[%clk 0:15:00]} 17. Bh6 {[%clk 0:15:00]}  Re8 {[%clk 0:15:00]} 18. Bd2 {[%clk 0:15:00]}  Ra7 {[%clk 0:15:00]} 19. Be3 {[%clk 0:15:00]}  b6 {[%clk 0:15:00]} 20. Qc2 {[%clk 0:15:00]}  Nc5 {[%clk 0:15:00]} 21. Rfb1 {[%clk 0:15:00]}  Nfd7 {[%clk 0:15:00]} 22. a4 {[%clk 0:15:00]}  Bg5 {[%clk 0:07:38]} 23. Bxg5 {[%clk 0:03:56]}  Qxg5 {[%clk 0:07:38]} 24. Ra3 {[%clk 0:03:56]}  Rea8 {[%clk 0:07:38]} 25. Rba1 {[%clk 0:03:56]}  f5 {[%clk 0:07:38]} 26. Nf1 {[%clk 0:03:56]}  Qf6 {[%clk 0:07:38]} 27. f3 {[%clk 0:03:56]}  e4 {[%clk 0:06:51]} 28. f4 {[%clk 0:03:24]}  Qd4+ {[%clk 0:06:51]} 29. Kh1 {[%clk 0:03:24]}  Qf2 {[%clk 0:06:51]} 30. g3 {[%clk 0:03:24]}  Rxa4 {[%clk 0:06:51]} 31. Rxa4 {[%clk 0:03:24]}  Rxa4 {[%clk 0:06:51]} 32. Rxa4 {[%clk 0:03:24]}  Nxa4 {[%clk 0:05:29]} 33. Qxa4 {[%clk 0:03:24]}  Qxe2 {[%clk 0:05:29]} 34. Kg1 {[%clk 0:03:24]}  e3 {[%clk 0:05:29]} 0-1


[Site "http://www.Chess.com"]

[Event "FIDE World Rapid Chess Championship 2021"]
[White "Vokhidov, Shamsiddin"]
[Black "Petrovskyi, Vadym"]
[WhiteFideId "14204223"]
[BlackFideId "14165210"]
[WhiteElo "2546"]
[BlackElo "2282"]
[Result "0-1"]
[Round "02"]
[TimeControl "900+10"]
[Date "2021.12.26"]
[WhiteClock "0:06:59"]
[BlackClock "0:11:06"]

1. e4 {[%clk 0:15:00]}  c5 {[%clk 0:15:00]} 2. Nf3 {[%clk 0:15:00]}  d6 {[%clk 0:15:00]} 3. d4 {[%clk 0:15:00]}  cxd4 {[%clk 0:15:00]} 4. Nxd4 {[%clk 0:15:00]}  Nf6 {[%clk 0:15:00]} 5. Nc3 {[%clk 0:15:00]}  a6 {[%clk 0:15:00]} 6. h3 {[%clk 0:15:00]}  e5 {[%clk 0:15:00]} 7. Nb3 {[%clk 0:15:00]}  h5 {[%clk 0:15:00]} 8. Bg5 {[%clk 0:15:00]}  Be7 {[%clk 0:15:00]} 9. Bc4 {[%clk 0:15:00]}  Be6 {[%clk 0:15:00]} 10. Bxe6 {[%clk 0:15:00]}  fxe6 {[%clk 0:15:00]} 11. O-O {[%clk 0:15:00]}  Nbd7 {[%clk 0:15:00]} 12. Qe2 {[%clk 0:15:00]}  Qc7 {[%clk 0:15:00]} 13. Rad1 {[%clk 0:15:00]}  O-O-O {[%clk 0:15:00]} 14. Rd3 {[%clk 0:15:00]}  Nb6 {[%clk 0:15:00]} 15. f4 {[%clk 0:15:00]}  exf4 {[%clk 0:15:00]} 16. Bxf4 {[%clk 0:15:00]}  Nbd7 {[%clk 0:15:00]} 17. Rfd1 {[%clk 0:15:00]}  Ne5 {[%clk 0:15:00]} 18. Rg3 {[%clk 0:15:00]}  h4 {[%clk 0:15:00]} 19. Rg5 {[%clk 0:15:00]}  Ne8 {[%clk 0:15:10]} 20. Nd4 {[%clk 0:13:07]}  Bxg5 {[%clk 0:15:10]} 21. Bxg5 {[%clk 0:13:07]}  Rd7 {[%clk 0:15:10]} 22. Nxe6 {[%clk 0:13:07]}  Qc4 {[%clk 0:15:10]} 23. Qxc4+ {[%clk 0:13:07]}  Nxc4 {[%clk 0:15:10]} 24. Nd5 {[%clk 0:13:07]}  Kb8 {[%clk 0:14:04]} 25. b3 {[%clk 0:12:42]}  Ne5 {[%clk 0:14:04]} 26. c4 {[%clk 0:11:23]}  Nf6 {[%clk 0:12:41]} 27. Nc3 {[%clk 0:09:12]}  Re8 {[%clk 0:12:13]} 28. Nd4 {[%clk 0:09:12]}  Nc6 {[%clk 0:12:13]} 29. Nxc6+ {[%clk 0:07:52]}  bxc6 {[%clk 0:11:11]} 30. Bxh4 {[%clk 0:07:52]}  Nxe4 {[%clk 0:11:11]} 31. Nxe4 {[%clk 0:07:52]}  Rxe4 {[%clk 0:11:11]} 32. Bg3 {[%clk 0:07:52]}  Kb7 {[%clk 0:11:11]} 33. Bxd6 {[%clk 0:07:52]}  c5 {[%clk 0:11:11]} 34. Rd5 {[%clk 0:07:52]}  Rd4 {[%clk 0:11:11]} 35. Rxd4 {[%clk 0:07:52]}  cxd4 {[%clk 0:11:11]} 36. c5 {[%clk 0:07:52]}  Rf7 {[%clk 0:11:11]} 37. Be5 {[%clk 0:07:52]}  d3 {[%clk 0:11:11]} 38. Bc3 {[%clk 0:07:52]}  Kc6 {[%clk 0:11:11]} 39. b4 {[%clk 0:07:52]}  Kb5 {[%clk 0:11:11]} 40. Be1 {[%clk 0:07:52]}  Ka4 {[%clk 0:11:06]} 41. g4 {[%clk 0:06:59]}  Ka3 {[%clk 0:11:06]} 42. c6 {[%clk 0:06:59]}  Kxa2 {[%clk 0:11:06]} 0-1


[Site "http://www.Chess.com"]

[Event "FIDE World Rapid Chess Championship 2021"]
[White "Kobalia, Mikhail"]
[Black "Toczek, Grzegorz"]
[WhiteFideId "4119150"]
[BlackFideId "1106457"]
[WhiteElo "2543"]
[BlackElo "2220"]
[Result "1-0"]
[Round "02"]
[TimeControl "900+10"]
[Date "2021.12.26"]
[WhiteClock "0:05:19"]
[BlackClock "0:01:03"]

1. e4 {[%clk 0:15:00]}  c5 {[%clk 0:15:00]} 2. Nf3 {[%clk 0:15:00]}  d6 {[%clk 0:15:00]} 3. d4 {[%clk 0:15:00]}  cxd4 {[%clk 0:15:00]} 4. Nxd4 {[%clk 0:15:00]}  Nf6 {[%clk 0:15:00]} 5. Nc3 {[%clk 0:15:00]}  Nc6 {[%clk 0:15:00]} 6. Bg5 {[%clk 0:15:00]}  g6 {[%clk 0:15:00]} 7. Bxf6 {[%clk 0:15:00]}  exf6 {[%clk 0:15:00]} 8. Bb5 {[%clk 0:15:00]}  Bd7 {[%clk 0:15:00]} 9. Nde2 {[%clk 0:15:00]}  Be7 {[%clk 0:15:00]} 10. Qd2 {[%clk 0:15:00]}  O-O {[%clk 0:15:00]} 11. Nd5 {[%clk 0:15:00]}  f5 {[%clk 0:15:00]} 12. exf5 {[%clk 0:15:00]}  Bxf5 {[%clk 0:15:00]} 13. Nxe7+ {[%clk 0:15:00]}  Qxe7 {[%clk 0:15:00]} 14. O-O {[%clk 0:15:00]}  Qe5 {[%clk 0:15:00]} 15. Nc3 {[%clk 0:15:00]}  Nd4 {[%clk 0:15:00]} 16. Rfe1 {[%clk 0:15:00]}  Qc5 {[%clk 0:15:00]} 17. Ba4 {[%clk 0:15:00]}  b5 {[%clk 0:15:00]} 18. Bb3 {[%clk 0:15:00]}  Bxc2 {[%clk 0:15:00]} 19. Bxc2 {[%clk 0:15:00]}  Nxc2 {[%clk 0:15:00]} 20. Ne4 {[%clk 0:15:00]}  Qc6 {[%clk 0:15:00]} 21. Rac1 {[%clk 0:15:00]}  Rac8 {[%clk 0:15:00]} 22. Re2 {[%clk 0:15:00]}  d5 {[%clk 0:15:00]} 23. Ng3 {[%clk 0:15:00]}  Qa6 {[%clk 0:04:05]} 24. Rxc2 {[%clk 0:08:23]}  Rxc2 {[%clk 0:04:05]} 25. Qxc2 {[%clk 0:08:23]}  Qxa2 {[%clk 0:04:05]} 26. h4 {[%clk 0:08:23]}  Qc4 {[%clk 0:04:05]} 27. h5 {[%clk 0:08:15]}  a5 {[%clk 0:01:59]} 28. Qd2 {[%clk 0:08:15]}  a4 {[%clk 0:01:59]} 29. Nf5 {[%clk 0:08:03]}  gxf5 {[%clk 0:01:03]} 30. Qg5+ {[%clk 0:08:03]}  Kh8 {[%clk 0:01:03]} 31. Qf6+ {[%clk 0:08:03]}  Kg8 {[%clk 0:01:03]} 32. Re3 {[%clk 0:05:19]} 1-0


[Site "http://www.Chess.com"]

[Event "FIDE World Rapid Chess Championship 2021"]
[White "Harikrishna, Pentala"]
[Black "Babazada, Khazar"]
[WhiteFideId "5007003"]
[BlackFideId "13413554"]
[WhiteElo "2705"]
[BlackElo "2170"]
[Result "1-0"]
[Round "02"]
[TimeControl "900+10"]
[Date "2021.12.26"]
[WhiteClock "0:00:54"]
[BlackClock "0:01:33"]

1. d4 {[%clk 0:15:00]}  Nf6 {[%clk 0:15:00]} 2. c4 {[%clk 0:15:00]}  g6 {[%clk 0:15:00]} 3. Nc3 {[%clk 0:15:00]}  Bg7 {[%clk 0:15:00]} 4. e4 {[%clk 0:15:00]}  d6 {[%clk 0:15:00]} 5. Nf3 {[%clk 0:15:00]}  O-O {[%clk 0:15:00]} 6. Be2 {[%clk 0:15:00]}  Na6 {[%clk 0:15:00]} 7. O-O {[%clk 0:15:00]}  e5 {[%clk 0:15:00]} 8. Be3 {[%clk 0:15:00]}  exd4 {[%clk 0:15:00]} 9. Nxd4 {[%clk 0:15:00]}  Re8 {[%clk 0:15:00]} 10. f3 {[%clk 0:15:00]}  Bd7 {[%clk 0:15:00]} 11. Qd2 {[%clk 0:15:00]}  Nc5 {[%clk 0:15:00]} 12. Rad1 {[%clk 0:15:00]}  a5 {[%clk 0:15:00]} 13. Kh1 {[%clk 0:15:00]}  Ne6 {[%clk 0:15:00]} 14. Nxe6 {[%clk 0:15:00]}  Bxe6 {[%clk 0:15:00]} 15. Bd4 {[%clk 0:15:00]}  h5 {[%clk 0:15:00]} 16. f4 {[%clk 0:15:00]}  Bg4 {[%clk 0:15:00]} 17. Bxg4 {[%clk 0:15:00]}  hxg4 {[%clk 0:15:00]} 18. Rde1 {[%clk 0:15:00]}  Nh5 {[%clk 0:15:00]} 19. Bxg7 {[%clk 0:15:00]}  Kxg7 {[%clk 0:15:00]} 20. g3 {[%clk 0:15:00]}  c6 {[%clk 0:15:00]} 21. Nd1 {[%clk 0:15:00]}  Qd7 {[%clk 0:15:00]} 22. Nf2 {[%clk 0:04:36]}  f5 {[%clk 0:06:44]} 23. Qd4+ {[%clk 0:04:36]}  Kh7 {[%clk 0:06:44]} 24. Kg1 {[%clk 0:04:36]}  Rad8 {[%clk 0:06:44]} 25. Re3 {[%clk 0:04:36]}  Qg7 {[%clk 0:06:44]} 26. Qd2 {[%clk 0:04:09]}  g5 {[%clk 0:05:34]} 27. exf5 {[%clk 0:04:09]}  gxf4 {[%clk 0:05:34]} 28. Re6 {[%clk 0:04:09]}  fxg3 {[%clk 0:04:22]} 29. Ne4 {[%clk 0:03:21]}  gxh2+ {[%clk 0:04:22]} 30. Qxh2 {[%clk 0:03:21]}  Rxe6 {[%clk 0:04:22]} 31. fxe6 {[%clk 0:03:21]}  Qd4+ {[%clk 0:04:22]} 32. Rf2 {[%clk 0:03:17]}  Kg6 {[%clk 0:02:42]} 33. Qg2 {[%clk 0:03:17]}  g3 {[%clk 0:02:12]} 34. Nxg3 {[%clk 0:01:15]}  Nf4 {[%clk 0:02:12]} 35. Ne2+ {[%clk 0:01:15]}  Nxg2 {[%clk 0:02:12]} 36. Nxd4 {[%clk 0:01:15]}  Ne3 {[%clk 0:02:12]} 37. Rf7 {[%clk 0:01:15]}  Re8 {[%clk 0:02:12]} 38. Rxb7 {[%clk 0:01:15]}  c5 {[%clk 0:02:12]} 39. Ne2 {[%clk 0:01:15]}  Kf5 {[%clk 0:01:33]} 40. b3 {[%clk 0:00:54]}  Rxe6 {[%clk 0:01:33]} 41. Nc3 {[%clk 0:00:54]}  Ng4 {[%clk 0:01:33]} 42. Kf1 {[%clk 0:00:54]}  Kf4 {[%clk 0:01:33]} 43. Nd5+ {[%clk 0:00:54]}  Kg3 {[%clk 0:01:33]} 44. Re7 {[%clk 0:00:54]}  Nh2+ {[%clk 0:01:33]} 45. Kg1 {[%clk 0:00:54]}  Nf3+ {[%clk 0:01:33]} 46. Kf1 {[%clk 0:00:54]}  Nh2+ {[%clk 0:01:33]} 1-0


[Site "http://www.Chess.com"]

[Event "FIDE World Rapid Chess Championship 2021"]
[White "Sychev, Klementy"]
[Black "Salem, A.R. Saleh"]
[WhiteFideId "4114060"]
[BlackFideId "9301348"]
[WhiteElo "2461"]
[BlackElo "2729"]
[Result "0-1"]
[Round "02"]
[TimeControl "900+10"]
[Date "2021.12.26"]
[WhiteClock "0:00:53"]
[BlackClock "0:04:54"]

1. d4 {[%clk 0:15:00]}  d5 {[%clk 0:15:00]} 2. c4 {[%clk 0:15:00]}  e6 {[%clk 0:15:00]} 3. Nf3 {[%clk 0:15:00]}  Nf6 {[%clk 0:15:00]} 4. Nc3 {[%clk 0:15:00]}  c6 {[%clk 0:15:00]} 5. Bg5 {[%clk 0:15:00]}  Nbd7 {[%clk 0:15:00]} 6. e3 {[%clk 0:15:00]}  Be7 {[%clk 0:15:00]} 7. Qc2 {[%clk 0:15:00]}  O-O {[%clk 0:15:00]} 8. Rd1 {[%clk 0:15:00]}  h6 {[%clk 0:15:00]} 9. Bf4 {[%clk 0:15:00]}  Nh5 {[%clk 0:15:00]} 10. Be5 {[%clk 0:15:00]}  Nhf6 {[%clk 0:15:00]} 11. Bg3 {[%clk 0:15:00]}  Nh5 {[%clk 0:15:00]} 12. Be5 {[%clk 0:15:00]}  Nhf6 {[%clk 0:15:00]} 13. Bxf6 {[%clk 0:15:00]}  Nxf6 {[%clk 0:15:00]} 14. Ne5 {[%clk 0:15:00]}  Nd7 {[%clk 0:15:00]} 15. Nf3 {[%clk 0:15:00]}  a6 {[%clk 0:15:00]} 16. a3 {[%clk 0:15:00]}  Qe8 {[%clk 0:15:00]} 17. Bd3 {[%clk 0:15:00]}  dxc4 {[%clk 0:15:00]} 18. Bxc4 {[%clk 0:15:00]}  b5 {[%clk 0:15:00]} 19. Ba2 {[%clk 0:15:00]}  c5 {[%clk 0:15:00]} 20. d5 {[%clk 0:15:00]}  c4 {[%clk 0:15:00]} 21. dxe6 {[%clk 0:15:00]}  Nc5 {[%clk 0:15:00]} 22. exf7+ {[%clk 0:15:00]}  Qxf7 {[%clk 0:15:00]} 23. O-O {[%clk 0:08:37]}  Bf5 {[%clk 0:07:52]} 24. e4 {[%clk 0:08:37]}  Bg4 {[%clk 0:07:52]} 25. Nd5 {[%clk 0:08:37]}  Bxf3 {[%clk 0:07:52]} 26. gxf3 {[%clk 0:01:58]}  Bd6 {[%clk 0:07:55]} 27. f4 {[%clk 0:01:58]}  Bxf4 {[%clk 0:07:55]} 28. f3 {[%clk 0:01:58]}  Rae8 {[%clk 0:08:03]} 29. b3 {[%clk 0:00:28]}  cxb3 {[%clk 0:08:03]} 30. Bxb3 {[%clk 0:00:28]}  Nxb3 {[%clk 0:08:03]} 31. Qxb3 {[%clk 0:00:28]}  Kh8 {[%clk 0:08:03]} 32. Rf2 {[%clk 0:00:53]}  Bb8 {[%clk 0:04:54]} 33. Kh1 {[%clk 0:00:53]}  Rxe4 {[%clk 0:04:54]} 34. Qd3 {[%clk 0:00:53]}  Rfe8 {[%clk 0:04:54]} 35. Rg1 {[%clk 0:00:53]}  R4e5 {[%clk 0:04:54]} 36. Nb4 {[%clk 0:00:53]}  Ba7 {[%clk 0:04:54]} 0-1


[Site "http://www.Chess.com"]

[Event "FIDE World Rapid Chess Championship 2021"]
[White "Mamedov, Rauf"]
[Black "Postny, Evgeny"]
[WhiteFideId "13401653"]
[BlackFideId "2804344"]
[WhiteElo "2690"]
[BlackElo "2454"]
[Result "1/2-1/2"]
[Round "02"]
[TimeControl "900+10"]
[Date "2021.12.26"]
[WhiteClock "0:01:21"]
[BlackClock "0:01:06"]

1. e4 {[%clk 0:15:00]}  e5 {[%clk 0:15:00]} 2. Nf3 {[%clk 0:15:00]}  Nc6 {[%clk 0:15:00]} 3. Bc4 {[%clk 0:15:00]}  Nf6 {[%clk 0:15:00]} 4. d3 {[%clk 0:15:00]}  Bc5 {[%clk 0:15:00]} 5. c3 {[%clk 0:15:32]}  O-O {[%clk 0:15:38]} 6. Bg5 {[%clk 0:15:41]}  Be7 {[%clk 0:15:44]} 7. Nbd2 {[%clk 0:15:41]}  h6 {[%clk 0:15:44]} 8. Bh4 {[%clk 0:15:41]}  d6 {[%clk 0:15:44]} 9. a4 {[%clk 0:15:41]}  Nh7 {[%clk 0:15:44]} 10. Bg3 {[%clk 0:15:41]}  Kh8 {[%clk 0:15:44]} 11. h4 {[%clk 0:15:41]}  f5 {[%clk 0:15:44]} 12. h5 {[%clk 0:15:41]}  f4 {[%clk 0:15:44]} 13. Bh4 {[%clk 0:15:41]}  Bg4 {[%clk 0:15:44]} 14. Bxe7 {[%clk 0:15:41]}  Nxe7 {[%clk 0:15:44]} 15. Qb3 {[%clk 0:15:41]}  Rb8 {[%clk 0:15:44]} 16. Be6 {[%clk 0:15:41]}  Bxe6 {[%clk 0:15:44]} 17. Qxe6 {[%clk 0:15:41]}  Rf6 {[%clk 0:15:44]} 18. Qb3 {[%clk 0:15:41]}  Qe8 {[%clk 0:15:44]} 19. d4 {[%clk 0:15:41]}  Nc6 {[%clk 0:15:44]} 20. Kf1 {[%clk 0:15:41]}  Rf8 {[%clk 0:15:44]} 21. Qc4 {[%clk 0:15:41]}  Rc8 {[%clk 0:15:44]} 22. Qb5 {[%clk 0:15:41]}  Rb8 {[%clk 0:15:44]} 23. a5 {[%clk 0:15:41]}  a6 {[%clk 0:15:44]} 24. Qc4 {[%clk 0:15:41]}  Rc8 {[%clk 0:15:44]} 25. dxe5 {[%clk 0:15:41]}  dxe5 {[%clk 0:15:44]} 26. Nb3 {[%clk 0:15:41]}  Nf6 {[%clk 0:15:44]} 27. Nc5 {[%clk 0:15:41]}  Nd8 {[%clk 0:15:44]} 28. Rd1 {[%clk 0:15:41]}  Kh7 {[%clk 0:15:44]} 29. b4 {[%clk 0:15:41]}  Nf7 {[%clk 0:15:44]} 30. Nxb7 {[%clk 0:15:41]}  Nd6 {[%clk 0:15:44]} 31. Qxa6 {[%clk 0:15:41]}  Qa4 {[%clk 0:15:44]} 32. Re1 {[%clk 0:15:41]}  Qc2 {[%clk 0:15:44]} 33. Nxd6 {[%clk 0:15:41]}  cxd6 {[%clk 0:15:44]} 34. Rh3 {[%clk 0:15:41]}  Nxe4 {[%clk 0:01:40]} 35. Re2 {[%clk 0:02:09]}  Qb1+ {[%clk 0:01:40]} 36. Re1 {[%clk 0:02:09]}  Qc2 {[%clk 0:01:40]} 37. Re2 {[%clk 0:02:09]}  Qd1+ {[%clk 0:01:40]} 38. Re1 {[%clk 0:02:09]}  Qc2 {[%clk 0:01:40]} 39. Re2 {[%clk 0:01:21]}  Qb1+ {[%clk 0:01:06]} 40. Re1 {[%clk 0:01:21]}  Qc2 {[%clk 0:01:06]} 1/2-1/2


[Site "http://www.Chess.com"]

[Event "FIDE World Rapid Chess Championship 2021"]
[White "Carlsson, Pontus"]
[Black "Riazantsev, Alexander"]
[WhiteFideId "1705814"]
[BlackFideId "4125029"]
[WhiteElo "2436"]
[BlackElo "2632"]
[Result "0-1"]
[Round "02"]
[TimeControl "900+10"]
[Date "2021.12.26"]
[WhiteClock "0:00:38"]
[BlackClock "0:05:49"]

1. e4 {[%clk 0:15:00]}  c6 {[%clk 0:15:00]} 2. d4 {[%clk 0:15:00]}  d5 {[%clk 0:15:00]} 3. e5 {[%clk 0:15:00]}  Bf5 {[%clk 0:15:00]} 4. h4 {[%clk 0:15:00]}  h5 {[%clk 0:15:00]} 5. c4 {[%clk 0:15:00]}  e6 {[%clk 0:15:00]} 6. Nc3 {[%clk 0:15:00]}  Bb4 {[%clk 0:15:00]} 7. a3 {[%clk 0:15:00]}  Bxc3+ {[%clk 0:15:00]} 8. bxc3 {[%clk 0:15:00]}  Ne7 {[%clk 0:15:00]} 9. a4 {[%clk 0:15:00]}  c5 {[%clk 0:15:00]} 10. Nf3 {[%clk 0:15:00]}  Nbc6 {[%clk 0:15:00]} 11. dxc5 {[%clk 0:15:00]}  Qa5 {[%clk 0:15:00]} 12. Qb3 {[%clk 0:15:00]}  O-O {[%clk 0:15:00]} 13. cxd5 {[%clk 0:15:00]}  Nxd5 {[%clk 0:15:00]} 14. Bd2 {[%clk 0:15:00]}  Qxc5 {[%clk 0:15:00]} 15. Qb5 {[%clk 0:15:00]}  Qe7 {[%clk 0:15:00]} 16. Bd3 {[%clk 0:15:00]}  Bg4 {[%clk 0:15:00]} 17. Ng5 {[%clk 0:15:00]}  a6 {[%clk 0:15:00]} 18. Qb1 {[%clk 0:15:00]}  Nxe5 {[%clk 0:15:00]} 19. c4 {[%clk 0:15:00]}  Nxd3+ {[%clk 0:10:45]} 20. Qxd3 {[%clk 0:00:30]}  Nf6 {[%clk 0:10:45]} 21. O-O {[%clk 0:00:30]}  Rfd8 {[%clk 0:10:45]} 22. Qe3 {[%clk 0:00:30]}  Bf5 {[%clk 0:10:45]} 23. Bc3 {[%clk 0:00:30]}  Rd3 {[%clk 0:10:45]} 24. Qe5 {[%clk 0:00:30]}  Rc8 {[%clk 0:08:59]} 25. Rfd1 {[%clk 0:00:15]}  Rxd1+ {[%clk 0:08:59]} 26. Rxd1 {[%clk 0:00:15]}  Ne8 {[%clk 0:08:59]} 27. Qd4 {[%clk 0:00:15]}  f6 {[%clk 0:06:40]} 28. Nf3 {[%clk 0:00:20]}  e5 {[%clk 0:06:40]} 29. Qb6 {[%clk 0:00:20]}  Rxc4 {[%clk 0:06:40]} 30. Bd2 {[%clk 0:00:20]}  Rc6 {[%clk 0:06:40]} 31. Qb3+ {[%clk 0:00:20]}  Qf7 {[%clk 0:06:40]} 32. Qe3 {[%clk 0:00:20]}  Bc2 {[%clk 0:06:40]} 33. Ra1 {[%clk 0:00:20]}  Nd6 {[%clk 0:06:40]} 34. Bb4 {[%clk 0:00:20]}  Nf5 {[%clk 0:06:40]} 35. Qd2 {[%clk 0:00:20]}  Qc4 {[%clk 0:06:05]} 36. Qd8+ {[%clk 0:00:38]}  Kh7 {[%clk 0:06:05]} 37. Bd2 {[%clk 0:00:38]}  e4 {[%clk 0:06:05]} 38. Qe8 {[%clk 0:00:38]}  exf3 {[%clk 0:06:05]} 39. Qxh5+ {[%clk 0:00:38]}  Nh6 {[%clk 0:06:05]} 40. Bxh6 {[%clk 0:00:38]}  Bg6 {[%clk 0:06:05]} 41. Qxf3 {[%clk 0:00:38]}  Kxh6 {[%clk 0:06:05]} 42. Qe3+ {[%clk 0:00:38]}  Kh7 {[%clk 0:05:49]} 0-1


[Site "http://www.Chess.com"]

[Event "FIDE World Rapid Chess Championship 2021"]
[White "Krasenkow, Michal"]
[Black "Heimann, Andreas"]
[WhiteFideId "1113100"]
[BlackFideId "24624632"]
[WhiteElo "2430"]
[BlackElo "2616"]
[Result "1/2-1/2"]
[Round "02"]
[TimeControl "900+10"]
[Date "2021.12.26"]
[WhiteClock "0:01:08"]
[BlackClock "0:00:42"]

1. Nf3 {[%clk 0:15:00]}  d5 {[%clk 0:15:00]} 2. d4 {[%clk 0:15:00]}  Nf6 {[%clk 0:15:00]} 3. c4 {[%clk 0:15:00]}  e6 {[%clk 0:15:00]} 4. Nc3 {[%clk 0:15:00]}  Bb4 {[%clk 0:15:00]} 5. Qa4+ {[%clk 0:15:00]}  Nc6 {[%clk 0:15:00]} 6. e3 {[%clk 0:15:00]}  O-O {[%clk 0:15:00]} 7. Qc2 {[%clk 0:15:00]}  b6 {[%clk 0:15:00]} 8. cxd5 {[%clk 0:15:00]}  exd5 {[%clk 0:15:00]} 9. Bd3 {[%clk 0:15:00]}  Re8 {[%clk 0:15:00]} 10. O-O {[%clk 0:15:00]}  Bg4 {[%clk 0:15:00]} 11. Ne2 {[%clk 0:15:00]}  Bxf3 {[%clk 0:15:00]} 12. gxf3 {[%clk 0:15:00]}  Ne7 {[%clk 0:15:00]} 13. Kh1 {[%clk 0:15:00]}  Qd7 {[%clk 0:15:00]} 14. Rg1 {[%clk 0:15:00]}  Bd6 {[%clk 0:15:00]} 15. e4 {[%clk 0:15:00]}  dxe4 {[%clk 0:15:00]} 16. fxe4 {[%clk 0:15:00]}  Nc6 {[%clk 0:15:00]} 17. e5 {[%clk 0:15:00]}  Bxe5 {[%clk 0:15:00]} 18. dxe5 {[%clk 0:15:00]}  Nb4 {[%clk 0:15:00]} 19. Bxh7+ {[%clk 0:15:00]}  Nxh7 {[%clk 0:15:00]} 20. Qe4 {[%clk 0:15:00]}  Nd3 {[%clk 0:06:55]} 21. Qg2 {[%clk 0:04:32]}  Qg4 {[%clk 0:06:55]} 22. f4 {[%clk 0:04:32]}  Qxg2+ {[%clk 0:06:55]} 23. Rxg2 {[%clk 0:04:32]}  f6 {[%clk 0:06:55]} 24. Bd2 {[%clk 0:05:12]}  fxe5 {[%clk 0:03:41]} 25. Bc3 {[%clk 0:05:12]}  Re7 {[%clk 0:03:41]} 26. Rag1 {[%clk 0:03:07]}  Rf8 {[%clk 0:03:26]} 27. Bxe5 {[%clk 0:03:07]}  Nxe5 {[%clk 0:03:26]} 28. fxe5 {[%clk 0:03:07]}  Rff7 {[%clk 0:03:26]} 29. Nd4 {[%clk 0:03:07]}  Rxe5 {[%clk 0:03:26]} 30. Nc6 {[%clk 0:03:07]}  Re8 {[%clk 0:03:24]} 31. Nxa7 {[%clk 0:01:41]}  Nf6 {[%clk 0:03:24]} 32. Nc6 {[%clk 0:01:41]}  Ne4 {[%clk 0:03:24]} 33. h3 {[%clk 0:01:41]}  Nf2+ {[%clk 0:03:24]} 34. Kh2 {[%clk 0:01:41]}  Re6 {[%clk 0:01:19]} 35. Nd4 {[%clk 0:02:21]}  Rd6 {[%clk 0:01:11]} 36. Nb3 {[%clk 0:02:21]}  c5 {[%clk 0:01:11]} 37. Rg6 {[%clk 0:02:21]}  Rfd7 {[%clk 0:01:01]} 38. Rxd6 {[%clk 0:00:35]}  Rxd6 {[%clk 0:01:01]} 39. Rg2 {[%clk 0:00:35]}  Nd1 {[%clk 0:01:01]} 40. Re2 {[%clk 0:00:35]}  c4 {[%clk 0:01:01]} 41. Nc1 {[%clk 0:00:35]}  b5 {[%clk 0:01:01]} 42. a3 {[%clk 0:00:35]}  Kf7 {[%clk 0:01:01]} 43. Kg2 {[%clk 0:00:35]}  Re6 {[%clk 0:01:01]} 44. Rd2 {[%clk 0:00:35]}  Ne3+ {[%clk 0:01:01]} 45. Kf2 {[%clk 0:00:35]}  Kf6 {[%clk 0:01:01]} 46. Ne2 {[%clk 0:00:35]}  Nf5 {[%clk 0:01:01]} 47. Nc3 {[%clk 0:00:35]}  Re5 {[%clk 0:01:01]} 48. Re2 {[%clk 0:00:35]}  Nd6 {[%clk 0:01:01]} 49. Rxe5 {[%clk 0:01:20]}  Kxe5 {[%clk 0:00:58]} 50. Ke3 {[%clk 0:01:20]}  g5 {[%clk 0:00:58]} 51. Kf3 {[%clk 0:01:20]}  Kd4 {[%clk 0:00:58]} 52. Kg4 {[%clk 0:01:20]}  Kd3 {[%clk 0:00:58]} 53. a4 {[%clk 0:01:20]}  b4 {[%clk 0:00:58]} 54. Nd5 {[%clk 0:01:20]}  b3 {[%clk 0:00:42]} 55. a5 {[%clk 0:01:08]}  Kc2 {[%clk 0:00:42]} 56. a6 {[%clk 0:01:08]}  Nc8 {[%clk 0:00:42]} 57. Ne3+ {[%clk 0:01:08]}  Kxb2 {[%clk 0:00:42]} 58. Nxc4+ {[%clk 0:01:08]}  Kc3 {[%clk 0:00:42]} 59. Na3 {[%clk 0:01:08]}  b2 {[%clk 0:00:42]} 60. Kxg5 {[%clk 0:01:08]}  Kb3 {[%clk 0:00:42]} 61. Nb1 {[%clk 0:01:08]}  Kc2 {[%clk 0:00:42]} 62. Na3+ {[%clk 0:01:08]} 1/2-1/2


[Site "http://www.Chess.com"]

[Event "FIDE World Rapid Chess Championship 2021"]
[White "Amin, Bassem"]
[Black "Aziz, Husain"]
[WhiteFideId "10601457"]
[BlackFideId "12100293"]
[WhiteElo "2614"]
[BlackElo "2430"]
[Result "1-0"]
[Round "02"]
[TimeControl "900+10"]
[Date "2021.12.26"]
[WhiteClock "0:02:29"]
[BlackClock "0:06:36"]

1. Nf3 {[%clk 0:15:00]}  d5 {[%clk 0:15:00]} 2. g3 {[%clk 0:15:00]}  c6 {[%clk 0:15:00]} 3. Bg2 {[%clk 0:15:00]}  Bg4 {[%clk 0:15:00]} 4. O-O {[%clk 0:15:00]}  e6 {[%clk 0:15:00]} 5. h3 {[%clk 0:15:00]}  Bh5 {[%clk 0:15:00]} 6. d3 {[%clk 0:15:00]}  Nf6 {[%clk 0:15:00]} 7. c4 {[%clk 0:15:00]}  dxc4 {[%clk 0:15:00]} 8. dxc4 {[%clk 0:15:00]}  Qxd1 {[%clk 0:15:00]} 9. Rxd1 {[%clk 0:15:00]}  Nbd7 {[%clk 0:15:00]} 10. Nc3 {[%clk 0:15:00]}  Bb4 {[%clk 0:15:00]} 11. Bd2 {[%clk 0:15:00]}  a5 {[%clk 0:15:00]} 12. a3 {[%clk 0:15:00]}  Be7 {[%clk 0:15:00]} 13. Na4 {[%clk 0:15:00]}  Bg6 {[%clk 0:15:00]} 14. Rac1 {[%clk 0:15:00]}  Ne4 {[%clk 0:15:00]} 15. Be3 {[%clk 0:15:00]}  Nec5 {[%clk 0:15:00]} 16. Nxc5 {[%clk 0:15:00]}  Nxc5 {[%clk 0:15:00]} 17. Ne5 {[%clk 0:15:00]}  Nb3 {[%clk 0:15:00]} 18. Rc3 {[%clk 0:15:00]}  a4 {[%clk 0:15:00]} 19. Nxg6 {[%clk 0:07:34]}  hxg6 {[%clk 0:06:27]} 20. Rcd3 {[%clk 0:07:34]}  Bc5 {[%clk 0:06:36]} 21. Rxb3 {[%clk 0:02:29]} 1-0


[Site "http://www.Chess.com"]